[Event "RUDAR 2 IM 2022"]
[Site "Pozarevac"]
[Date "2022.04.06"]
[Round "5.5"]
[White "Dudukovic, Nikola"]
[Black "Rajkovic, Aleksandar"]
[Result "1/2-1/2"]
[ECO "C42"]
[WhiteElo "2362"]
[BlackElo "2181"]
[Annotator "TA"]
[PlyCount "152"]
[EventDate "2022.03.27"]
[EventType "tourn"]
[EventCountry "SRB"]
[SourceTitle "playchess.com"]
[Source "ChessBase"]
[SourceQuality "1"]
[TimeControl "40/5400+30:900+30"]

{[%evp 91,152,104,104,104,104,43,97,43,123,54,123,66,123,123,123,123,123,123,123,123,123,123,123,123,123,123,123,123,158,123,123,114,115,115,123,123,123,123,123,123,123,123,135,127,135,116,116,0,127,127,127,128,128,128,128,128,128,128,137,128,128,128,137]} 1. e4 {[%emt 0:00:33]} e5 {[%emt 0:02:28]} 2. Nf3 {[%emt 0:00:18]} Nf6 {[%emt 0:00:34]} 3. Nxe5 {[%emt 0:00:37]} d6 {[%emt 0:00:05]} 4. Nf3 {[%emt 0:00:04]} Nxe4 {[%emt 0:00:05]} 5. Nc3 {[%emt 0:00:06]} Nxc3 {[%emt 0:01:20]} 6. dxc3 {[%emt 0:00:06]} Be7 {[%emt 0:00:06]} 7. Bf4 {[%emt 0:00:20]} Nc6 {[%emt 0:00:26]} 8. Qd2 {[%emt 0:00:08]} Bg4 {[%emt 0:00:19]} 9. Be2 {[%emt 0:01:47]} Qd7 {[%emt 0:00:06]} 10. O-O-O {[%emt 0:00:08]} O-O-O {[%emt 0:00:14]} 11. h3 {[%emt 0:01:10]} Be6 {[%emt 0:07:26]} 12. Ng5 {[%emt 0:04:44]} Bxg5 {[%emt 0:00:45]} 13. Bxg5 {[%emt 0:00:06]} Rde8 {[%emt 0:00:04]} 14. c4 {[%emt 1:27:23]} Bf5 {[%emt 0:09:53]} 15. Rhe1 {[%emt 0:00:00]} Re4 {[%emt 0:03:39]} 16. Qc3 {[%emt 0:00:00]} f6 {[%emt 0:00:54]} 17. Be3 {[%emt 0:00:00]} Qe6 {[%emt 0:04:54]} 18. b3 {[%emt 0:00:00]} Qe5 {[%emt 0:01:40]} 19. Qxe5 {[%emt 0:00:00]} Rxe5 {[%emt 0:00:14]} 20. a3 {[%emt 0:00:00]} Rhe8 {[%emt 0:08:52]} 21. Rd5 {[%emt 0:00:00]} Be4 {[%emt 0:00:19]} 22. Rxe5 {[%emt 0:00:00]} Rxe5 {[%emt 0:00:34]} 23. g4 {[%emt 0:00:00]} a5 {[%emt 0:06:30]} 24. Kd2 {[%emt 0:00:00]} Re7 {[%emt 0:04:37]} 25. Rf1 {[%emt 0:00:00]} g5 {[%emt 0:03:59]} 26. Bd1 {[%emt 0:00:00]} Bg2 {[%emt 0:02:52]} 27. Rg1 {[%emt 0:00:00]} Be4 {[%emt 0:00:21]} 28. f3 {[%emt 0:00:00]} Bg6 {[%emt 0:00:20]} 29. f4 {[%emt 0:00:00]} h6 {[%emt 0:01:16]} 30. h4 {[%emt 0:00:00]} gxf4 {[%emt 0:04:32]} 31. Bxf4 {[%emt 0:00:00]} Rh7 {[%emt 0:06:06]} 32. Re1 {[%emt 0:00:00]} Ne5 {[%emt 0:01:33]} 33. c5 {[%emt 0:00:00]} Kd7 {[%emt 0:01:25]} 34. cxd6 {[%emt 0:00:00]} cxd6 {[%emt 0:00:21]} 35. Rg1 {[%emt 0:00:00]} Ke6 {[%emt 0:03:10]} 36. Be2 {[%emt 0:01:54]} Be4 {[%emt 0:02:37]} 37. Rg3 {[%emt 0:04:26]} Ng6 {[%emt 0:04:26]} 38. Re3 {[%emt 0:00:08]} d5 {[%emt 0:00:24]} 39. Bg3 {[%emt 0:00:53]} f5 {[%emt 0:00:11]} 40. gxf5+ {[%emt 0:00:00]} Kxf5 {[%emt 0:00:00]} 41. Rc3 {[%emt 0:04:45]} Ne5 {[%emt 0:03:27]} 42. Rc8 {[%emt 0:05:54]} Rg7 {[%emt 0:03:50]} 43. Rf8+ {[%emt 0:00:12]} Rf7 {[%emt 0:01:58]} 44. Rxf7+ {[%emt 0:04:09]} Nxf7 {[%emt 0:00:09]} 45. Bc7 {[%emt 0:00:03]} Ne5 {[%emt 0:00:11]} 46. Bxa5 {[%emt 0:00:40]} Nf3+ {[%emt 0:00:06]} 47. Bxf3 {[%emt 0:00:15]} Bxf3 {[%emt 0:00:05]} 48. a4 {[%emt 0:02:18]} (48. Kc3 $16) 48... Ke5 {[%emt 0:00:16]} (48... d4 $14) 49. Bc7+ {[%emt 0:00:54]} (49. Ke3 $16 Be4 50. Bc3+ Ke6 51. Kd2) 49... Ke6 {[%emt 0:00:21]} (49... Ke4 $14) 50. b4 {[%emt 0:00:20]} (50. Bb6 $16) 50... h5 {[%emt 0:00:44]} ({Black should try} 50... d4 $1 $14) 51. b5 {[%emt 0:01:14]} (51. Bb6 $16) 51... Kd7 {[%emt 0:00:23]} (51... d4 $1 $14) 52. Bb6 $16 {[%emt 0:00:17]} Kc8 {[%emt 0:00:11]} 53. Kc3 {[%emt 0:00:09]} Kb8 {[%emt 0:00:17]} 54. a5 {[%emt 0:00:17]} Be2 {[%emt 0:00:27]} 55. Kb4 {[%emt 0:00:06]} Bd1 {[%emt 0:00:29]} 56. c3 {[%emt 0:00:07]} Be2 {[%emt 0:00:08]} 57. Kc5 {[%emt 0:00:06]} Bc4 {[%emt 0:00:44] [#]} 58. Bd8 $1 {[%emt 0:00:12]} Ka7 {[%emt 0:00:38]} 59. Bc7 {[%emt 0:00:32]} Ka8 {[%emt 0:00:40]} 60. Kb6 {[%emt 0:00:48]} Bd3 {[%emt 0:00:24]} 61. a6 {[%emt 0:00:09]} bxa6 {[%emt 0:00:17]} 62. Kxa6 {[%emt 0:00:05]} Be2 {[%emt 0:01:37]} 63. Kb6 {[%emt 0:00:11]} Bd1 {[%emt 0:02:52]} 64. Kc6 {[%emt 0:00:45]} Ba4 {[%emt 0:00:15]} 65. Be5 {[%emt 0:00:23]} Ka7 {[%emt 0:00:12]} 66. Bd4+ {[%emt 0:00:34]} Kb8 {[%emt 0:01:56]} 67. Kb6 {[%emt 0:00:37]} Ka8 {[%emt 0:01:40]} 68. Ka6 {[%emt 0:03:40]} Bd1 {[%emt 0:00:51]} 69. Kb6 {[%emt 0:00:25]} (69. Be5 $16) 69... Bc2 {[%emt 0:01:19]} (69... Ba4 $1 $11 {keeps the balance.}) 70. Be5 {[%emt 0:02:04]} Bd1 {[%emt 0:01:35]} 71. Kc7 {[%emt 0:00:19]} Be2 {[%emt 0:00:14]} 72. Kc6 {[%emt 0:00:06]} Bc4 {[%emt 0:00:27]} 73. Bc7 {[%emt 0:02:00]} Be2 {[%emt 0:00:42]} 74. b6 {[%emt 0:00:11]} Ba6 {[%emt 0:00:15]} 75. Kxd5 {[%emt 0:00:08]} Bb7+ {[%emt 0:00:20]} 76. Kd6 {[%emt 0:00:28]} Bf3 {[%emt 0:00:06]} 1/2-1/2

[Event "RUDAR 2 IM 2022"]
[Site "Pozarevac"]
[Date "2022.04.07"]
[Round "7.1"]
[White "Acor, Corey"]
[Black "Bryakin, Mikhail"]
[Result "0-1"]
[ECO "B12"]
[WhiteElo "2326"]
[BlackElo "2481"]
[Annotator "TA"]
[PlyCount "44"]
[EventDate "2022.03.27"]
[EventType "tourn"]
[EventCountry "SRB"]
[SourceTitle "playchess.com"]
[Source "ChessBase"]
[SourceQuality "1"]
[TimeControl "40/5400+30:900+30"]

{[%evp 10,44,10,12,18,25,33,-34,-31,-36,-31,-26,-37,-53,-51,-56,-62,-57,-57,-58,-77,-48,-63,-89,-88,-83,-78,-82,-90,-627,-627,-708,-690,-697,-682,-649,-633]} 1. e4 {[%emt 0:00:04]} c6 {[%emt 0:00:05]} 2. d4 {[%emt 0:00:05]} d5 {[%emt 0:00:04]} 3. e5 {[%emt 0:00:05]} Bf5 {[%emt 0:00:27]} 4. Nd2 {[%emt 0:00:19]} e6 {[%emt 0:00:09]} 5. Nb3 {[%emt 0:00:06]} Nd7 {[%emt 0:00:07]} 6. Nf3 {[%emt 0:00:13]} Qc7 {[%emt 0:00:06] B12: Caro-Kann: Advance Variation.} 7. Be2 {[%emt 0:02:14]} f6 {[%emt 0:00:12][%cal Rf6e5]} 8. exf6 {[%emt 0:00:47]} (8. Bf4 $14) 8... Ngxf6 $15 {[%emt 0:00:20] Black is slightly better.} 9. O-O {[%emt 0:09:09]} Bd6 {[%emt 0:00:17] [#]} 10. h3 $146 {[%emt 0:00:57]} ({Predecessor:} 10. Bg5 O-O 11. Bh4 Ne4 12. c4 Rae8 13. Nbd2 Ndf6 14. Nxe4 Nxe4 15. Bg3 Nxg3 16. hxg3 {0-1 (72) Zinchenko,Y (2546)-Lastin,A (2643) ICC INT 2010}) 10... O-O {[%emt 0:04:39]} 11. c3 {[%emt 0:06:56]} Rae8 {[%emt 0:01:59]} 12. Be3 {[%emt 0:00:55]} e5 {[%emt 0:04:56]} 13. dxe5 {[%emt 0:00:44]} Nxe5 {[%emt 0:00:26]} 14. Re1 {[%emt 0:09:45]} Ne4 {[%emt 0:03:46]} 15. Nxe5 {[%emt 0:08:14]} Bxe5 {[%emt 0:01:08]} 16. Nd2 {[%emt 0:16:24]} Bh2+ {[%emt 0:05:48]} 17. Kh1 {[%emt 0:00:31]} Bf4 {[%emt 0:01:13] [#] Strongly threatening ...Bxe3. &Nero is much more active.} 18. Nxe4 {[%emt 0:07:25] Bxf4 is the strong threat.} Bxe3 {[%emt 0:00:55]} 19. Bh5 $2 {[%emt 0:01:24][%mdl 8192]} Bxe4 $19 {[%emt 0:24:05] Black is clearly winning.} 20. Rxe3 {[%emt 0:34:13] [#]} Rxf2 $1 {[%emt 0:01:13]} 21. Bf3 {[%emt 0:00:00]} Qg3 {[%emt 0:04:08]} ({Weaker is} 21... Rxb2 22. Qc1 Rb5 23. Qd2 $19) 22. Qe1 {[%emt 0:00:00][%cal Rf3e4]} Rxg2 {[%emt 0:00:58] White got outplayed after the opening.  Weighted Error Value: White=0.57/Black=0.01 (flawless)} (22... Rxf3 23. Qxg3 Rxe3 24. Qg4 $17) 0-1

[Event "RUDAR 2 IM 2022"]
[Site "Pozarevac"]
[Date "2022.04.07"]
[Round "7.2"]
[White "Dudukovic, Nikola"]
[Black "Velikic, Adela"]
[Result "1/2-1/2"]
[ECO "D11"]
[WhiteElo "2362"]
[BlackElo "2258"]
[Annotator "TA"]
[PlyCount "105"]
[EventDate "2022.03.27"]
[EventType "tourn"]
[EventCountry "SRB"]
[SourceTitle "playchess.com"]
[Source "ChessBase"]
[SourceQuality "1"]
[TimeControl "40/5400+30:900+30"]

{[%evp 64,105,53,70,78,66,247,248,252,239,239,122,123,129,99,64,90,49,53,59,62,41,99,38,37,36,54,32,46,41,102,8,8,8,8,8,8,8,8,8,8,8,8,8]} 1. d4 {[%emt 0:00:30]} d5 {[%emt 0:00:09]} 2. Nf3 {[%emt 0:00:08]} Nf6 {[%emt 0:00:08]} 3. g3 {[%emt 0:00:25]} c6 {[%emt 0:00:40]} 4. Bg2 {[%emt 0:00:06]} Bf5 {[%emt 0:00:08]} 5. O-O {[%emt 0:00:11]} h6 {[%emt 0:00:26]} 6. c4 {[%emt 0:00:41]} e6 {[%emt 0:00:08]} 7. Nc3 {[%emt 0:00:32]} Be7 {[%emt 0:01:38]} 8. Qb3 {[%emt 0:01:18]} Qb6 {[%emt 0:00:32]} 9. c5 {[%emt 0:00:08]} Qxb3 {[%emt 0:00:11]} 10. axb3 {[%emt 0:00:06]} O-O {[%emt 0:01:09]} 11. b4 {[%emt 0:01:22]} a6 {[%emt 0:00:38]} 12. Bf4 {[%emt 0:02:25]} Nbd7 {[%emt 0:04:13]} 13. h3 {[%emt 0:04:18]} g5 {[%emt 0:06:26]} 14. Be3 {[%emt 0:00:33]} Bh7 {[%emt 0:13:58]} 15. Nd2 {[%emt 0:05:27]} Nh5 {[%emt 0:06:28]} 16. Kh2 {[%emt 0:03:59]} Kh8 {[%emt 0:21:29]} 17. Nb3 {[%emt 0:09:00]} Rab8 {[%emt 0:05:30]} 18. Bd2 {[%emt 0:13:27]} f5 {[%emt 0:03:58]} 19. f4 {[%emt 0:00:50]} Rg8 {[%emt 0:06:24]} 20. e3 {[%emt 0:10:03]} Rg7 {[%emt 0:03:00]} 21. Rg1 {[%emt 0:02:31]} Ndf6 {[%emt 0:05:38]} 22. Be1 {[%emt 0:07:34]} Rbg8 {[%emt 0:02:11]} 23. Bf2 {[%emt 0:06:11]} Bd8 {[%emt 0:00:20]} 24. Bf1 {[%emt 0:11:26]} Bc7 {[%emt 0:04:01]} 25. Be2 {[%emt 0:04:50]} Bg6 {[%emt 0:04:52]} 26. Na5 {[%emt 0:00:24]} Bb8 {[%emt 0:07:29]} 27. Bd3 {[%emt 0:02:47]} Rf7 {[%emt 0:00:40]} 28. Kh1 {[%emt 0:03:41]} Ne4 {[%emt 0:00:20]} 29. Nxe4 {[%emt 0:06:44]} fxe4 {[%emt 0:00:04]} 30. Be2 {[%emt 0:00:05]} Nf6 {[%emt 0:00:34]} 31. Raf1 {[%emt 0:00:24]} Bh5 {[%emt 0:01:05]} 32. g4 {[%emt 0:00:39]} Bg6 {[%emt 0:01:22]} 33. Bg3 {[%emt 0:00:49]} gxf4 {[%emt 0:00:37]} 34. Bxf4 {[%emt 0:00:07]} Nd7 $2 {[%emt 0:00:30]} (34... Bxf4 $14 35. Rxf4 Rgf8) 35. Nxb7 $18 {[%emt 0:01:00]} (35. Bxh6 $6 Rh7 $16) 35... e5 {[%emt 0:00:30]} 36. dxe5 {[%emt 0:00:25]} ({Don't do} 36. Bxh6 $6 Rh7 $16) 36... Nxe5 {[%emt 0:00:19]} 37. Bxe5+ {[%emt 0:02:10]} ({Don't play} 37. Bxa6 $6 Nf3) (37. Nd6 $18 Bxd6 38. cxd6) 37... Bxe5 $16 {[%emt 0:00:01]} 38. Rxf7 {[%emt 0:00:09]} Bxf7 {[%emt 0:00:00]} 39. Bxa6 {[%emt 0:00:46]} d4 {[%emt 0:00:42]} 40. exd4 {[%emt 0:00:00]} Bxd4 {[%emt 0:00:00]} 41. Rd1 {[%emt 0:01:41]} Bxb2 {[%emt 0:01:19]} 42. Nd6 {[%emt 0:01:25]} Be6 {[%emt 0:05:42]} (42... Bd5 $14) 43. b5 {[%emt 0:08:29]} (43. Nxe4 $16 Bd5 {[#]} 44. Rxd5 $1 cxd5 45. Nd6) 43... cxb5 $14 {[%emt 0:03:27]} 44. Bxb5 {[%emt 0:00:21]} e3 {[%emt 0:04:26]} 45. c6 {[%emt 0:00:43]} Be5 {[%emt 0:02:22]} 46. c7 {[%emt 0:02:33]} h5 {[%emt 0:00:34]} ({Black should play} 46... Kg7 $14) 47. Bc4 {[%emt 0:01:49]} ({Better is} 47. c8=R $16 Bxc8 48. Nf7+ (48. gxh5 $2 Bxd6 49. Bc6 Bb4 $19) 48... Kg7 49. Nxe5) 47... Bxc4 $11 {[%emt 0:00:54]} 48. Nxc4 {[%emt 0:01:07]} e2 {[%emt 0:00:43]} 49. Re1 {[%emt 0:00:36]} Bxc7 {[%emt 0:00:08]} 50. Rxe2 {[%emt 0:00:13]} hxg4 {[%emt 0:00:08]} 51. hxg4 {[%emt 0:00:04]} Rxg4 {[%emt 0:00:15]} 52. Re8+ {[%emt 0:00:05]} Rg8 {[%emt 0:00:11]} 53. Rxg8+ {[%emt 0:04:43]} 1/2-1/2

[Event "RUDAR 2 IM 2022"]
[Site "Pozarevac"]
[Date "2022.04.07"]
[Round "7.3"]
[White "Anishka Vikram"]
[Black "Ivanovic, Marko"]
[Result "0-1"]
[ECO "E94"]
[WhiteElo "2000"]
[BlackElo "2302"]
[Annotator "TA"]
[PlyCount "86"]
[EventDate "2022.03.27"]
[EventType "tourn"]
[EventCountry "SRB"]
[SourceTitle "playchess.com"]
[Source "ChessBase"]
[SourceQuality "1"]
[TimeControl "40/5400+30:900+30"]

{[%evp 56,86,-97,-98,-94,-151,-130,-151,-143,-143,-143,-143,-143,-254,-244,-377,-349,-529,-553,-567,-423,-668,-658,-1015,-970,-29970,-5931,-2136,-908,-29969,-29970,-1653,-1396]} 1. d4 {[%emt 0:00:04]} Nf6 {[%emt 0:01:14]} 2. c4 {[%emt 0:00:09]} g6 {[%emt 0:01:04]} 3. Nc3 {[%emt 0:00:09]} Bg7 {[%emt 0:00:09]} 4. e4 {[%emt 0:00:06]} d6 {[%emt 0:00:07]} 5. Nf3 {[%emt 0:00:04]} O-O {[%emt 0:00:08]} 6. Be2 {[%emt 0:00:03]} Nbd7 {[%emt 0:07:52]} 7. O-O {[%emt 0:00:37]} e5 {[%emt 0:00:38]} 8. d5 {[%emt 0:00:10]} Nc5 {[%emt 0:01:41]} 9. Nd2 {[%emt 0:01:11]} a5 {[%emt 0:01:17]} 10. b3 {[%emt 0:00:17]} Ne8 {[%emt 0:02:40]} 11. a3 {[%emt 0:00:53]} f5 {[%emt 0:00:14]} 12. Rb1 {[%emt 0:01:09]} Bh6 {[%emt 0:01:58]} 13. f3 {[%emt 0:02:38]} Bd7 {[%emt 0:06:07]} 14. b4 {[%emt 0:02:01]} axb4 {[%emt 0:00:35]} 15. axb4 {[%emt 0:00:09]} Be3+ {[%emt 0:00:32]} 16. Kh1 {[%emt 0:00:33]} Na4 {[%emt 0:00:03]} 17. Nxa4 {[%emt 0:05:53]} Bxa4 {[%emt 0:00:16]} 18. Nb3 {[%emt 0:01:00]} Bxc1 {[%emt 0:00:05]} 19. Qxc1 {[%emt 0:01:27]} Qh4 {[%emt 0:00:46]} 20. Qe1 {[%emt 0:21:35]} Qxe1 {[%emt 0:01:59]} 21. Rfxe1 {[%emt 0:00:05]} Bxb3 {[%emt 0:00:04]} 22. Rxb3 {[%emt 0:00:07]} fxe4 {[%emt 0:00:03]} 23. fxe4 {[%emt 0:00:08]} Ra2 {[%emt 0:00:08]} 24. Kg1 {[%emt 0:11:08]} Nf6 {[%emt 0:02:14]} 25. Bf3 {[%emt 0:05:37]} Rc2 {[%emt 0:03:40]} 26. c5 {[%emt 0:00:54]} Ra8 {[%emt 0:00:05]} 27. Rbb1 {[%emt 0:09:19]} Raa2 {[%emt 0:01:32]} 28. Rec1 {[%emt 0:03:33]} g5 {[%emt 0:00:21]} 29. Rxc2 {[%emt 0:06:20]} Rxc2 {[%emt 0:01:02]} 30. g3 {[%emt 0:01:14]} ({White should try} 30. cxd6 cxd6 31. g3) 30... g4 {[%emt 0:00:16]} 31. Bg2 {[%emt 0:00:06]} Kf7 {[%emt 0:00:49]} 32. cxd6 {[%emt 0:00:56]} cxd6 {[%emt 0:00:05]} 33. b5 {[%emt 0:02:51]} Ke7 {[%emt 0:00:36]} 34. Ra1 {[%emt 0:02:35] [#]} (34. Rb4 $17 {might work better.}) 34... Rb2 $1 $19 {[%emt 0:00:32]} 35. Bf1 {[%emt 0:05:18]} (35. Ra5 {was called for.}) 35... Nxe4 $19 {[%emt 0:00:10]} 36. Ra4 {[%emt 0:02:41]} (36. Re1 $142 Nc3 37. Bd3) 36... Ng5 $19 {[%emt 0:02:18]} 37. Bd3 {[%emt 0:07:01]} Rd2 {[%emt 0:01:35]} 38. Ra3 {[%emt 0:02:46]} (38. Be4 $142) 38... e4 $19 {[%emt 0:00:44]} 39. Bc4 {[%emt 0:00:19]} Rc2 {[%emt 0:00:57]} 40. Ba2 {[%emt 0:00:00]} Kf6 {[%emt 0:00:00]} (40... Nf3+ $142 41. Kf1 Rb2 42. Ra4 e3 43. Re4+ Kd7 44. Rxe3 Rxa2 45. Re6 Rxh2 46. Rf6 Ne5 47. Rf5 Rb2 48. b6 Rd2 49. Rh5 Rxd5 50. Rxh7+ Kc6 51. Rh8 Kxb6 52. Rc8 Rc5 53. Rg8 Rc2 54. Ke1 Rg2 55. Kf1 Rxg3 56. Rg7 Kc6 57. Rg8 Rf3+ 58. Kg1 b5 59. Rc8+ Kd5 60. Rb8 Kc5 61. Rc8+ Kd4 62. Rc2 b4 63. Rd2+ Kc5 64. Ra2 b3 65. Ra5+ Kc4 66. Ra1 Kd4 67. Ra6 Nc4 68. Ra4 Kc3 69. Ra8 b2 70. Rb8 Kc2 71. Kh2 b1=Q 72. Rxb1 Kxb1 73. Kh1 Ne3 74. Kh2 Kb2 75. Kh1 g3 76. Kg1 Rf1#) 41. Bb3 {[%emt 0:03:55]} Rb2 {[%emt 0:00:26]} (41... Nf3+ $142 42. Kf1 Rc3) 42. Bc4 {[%emt 0:00:32]} Nf3+ {[%emt 0:00:07]} 43. Kf1 {[%emt 0:00:37]} Nd2+ {[%emt 0:00:05]} 0-1

[Event "RUDAR 2 IM 2022"]
[Site "Pozarevac"]
[Date "2022.04.07"]
[Round "7.4"]
[White "Andreev, Konstantin"]
[Black "Savitha Shri B"]
[Result "0-1"]
[ECO "B90"]
[WhiteElo "2238"]
[BlackElo "2257"]
[Annotator "TA"]
[PlyCount "108"]
[EventDate "2022.03.27"]
[EventType "tourn"]
[EventCountry "SRB"]
[SourceTitle "playchess.com"]
[Source "ChessBase"]
[SourceQuality "1"]
[TimeControl "40/5400+30:900+30"]

{[%evp 61,108,-92,-96,-93,-76,-214,-214,-223,0,-82,0,0,0,-8,-8,-131,-98,-105,-94,-278,-291,-339,-340,-314,-355,-491,-483,-462,-410,-420,-410,-403,-351,-697,-685,-671,-661,-726,-712,-697,-653,-1482,-1452,-1612,-1526,-1365,-1301,-2694,-2216]} 1. e4 {[%emt 0:00:02]} c5 {[%emt 0:01:44]} 2. Nf3 {[%emt 0:00:05]} d6 {[%emt 0:00:06]} 3. d4 {[%emt 0:00:10]} cxd4 {[%emt 0:00:09]} 4. Nxd4 {[%emt 0:00:13]} Nf6 {[%emt 0:00:08]} 5. Nc3 {[%emt 0:00:06]} a6 {[%emt 0:00:05]} 6. h3 {[%emt 0:00:23]} Nbd7 {[%emt 0:01:19]} 7. g4 {[%emt 0:00:34]} Nc5 {[%emt 0:02:58]} 8. Bg2 {[%emt 0:00:19]} e5 {[%emt 0:06:12]} 9. Nde2 {[%emt 0:00:06]} h6 {[%emt 0:08:53]} 10. Be3 {[%emt 0:01:30]} Be6 {[%emt 0:04:44]} 11. Ng3 {[%emt 0:03:39]} b5 {[%emt 0:01:51]} 12. O-O {[%emt 0:05:28]} Rc8 {[%emt 0:04:55]} 13. Kh1 {[%emt 0:02:20]} g5 {[%emt 0:02:41]} 14. Nd5 {[%emt 0:07:14]} Ncd7 {[%emt 0:17:53]} 15. Kg1 {[%emt 0:05:37]} h5 {[%emt 0:06:47]} 16. Bxg5 {[%emt 0:12:56]} hxg4 {[%emt 0:04:47]} 17. hxg4 {[%emt 0:00:11]} Rg8 {[%emt 0:03:03]} 18. Qd2 {[%emt 0:07:22]} Bxg4 {[%emt 0:06:30]} 19. c3 {[%emt 0:08:33]} Be6 {[%emt 0:02:38]} 20. Rae1 {[%emt 0:05:42]} Bxd5 {[%emt 0:02:15]} 21. exd5 {[%emt 0:00:06]} Rc4 {[%emt 0:03:54]} 22. f4 {[%emt 0:02:48]} Qb6+ {[%emt 0:00:35]} 23. Qf2 {[%emt 0:03:04]} Nh7 {[%emt 0:02:49]} 24. Qxb6 {[%emt 0:01:13]} Nxb6 {[%emt 0:00:02]} 25. Ne4 {[%emt 0:01:52]} Nxd5 {[%emt 0:05:59]} 26. Nd2 {[%emt 0:08:48]} Nxg5 {[%emt 0:02:07]} 27. Nxc4 {[%emt 0:00:48]} Nxf4 {[%emt 0:02:43]} 28. Ne3 {[%emt 0:00:24]} Be7 {[%emt 0:01:00]} 29. Kh2 {[%emt 0:03:52]} Rh8+ {[%emt 0:00:42]} 30. Kg1 {[%emt 0:01:23]} Rg8 {[%emt 0:00:02]} 31. Kh2 {[%emt 0:00:07]} Nge6 {[%emt 0:01:15]} 32. Bc6+ {[%emt 0:02:10]} Kf8 {[%emt 0:00:07]} 33. Nf5 {[%emt 0:00:28] [#]} (33. Ng2 $17) 33... Rh8+ $1 $19 {[%emt 0:00:28]} 34. Kg3 {[%emt 0:00:28]} Rg8+ $2 {[%emt 0:04:10]} ({Black should try} 34... Rh3+ $19 35. Kg4 Rh5 36. Nxe7 Kxe7) 35. Kf3 {[%emt 0:00:43]} (35. Kh2 $11) 35... Nd3 {[%emt 0:00:33]} ({Black should play} 35... Rg2 $17 {Threatens to win with ...Bd8.} 36. Rg1 Rxb2) 36. Rb1 $11 {[%emt 0:00:37]} Rg5 {[%emt 0:01:09]} 37. Nxe7 {[%emt 0:00:49]} Kxe7 {[%emt 0:00:01]} 38. Be4 {[%emt 0:00:07]} (38. Ke3 $11 {remains equal.} Nef4 39. Be4) 38... Ndc5 {[%emt 0:00:46]} 39. Rg1 {[%emt 0:00:59]} Rh5 {[%emt 0:01:04]} 40. Bd5 $2 {[%emt 0:00:00]} (40. Bc2 $17) 40... Nf4 $19 {[%emt 0:00:00]} 41. Bb3 {[%emt 0:02:08] [#]} Rh3+ $1 {[%emt 0:02:20]} 42. Rg3 {[%emt 0:01:39]} Rh2 {[%emt 0:00:29]} 43. Rg7 {[%emt 0:01:14]} d5 {[%emt 0:00:38]} 44. Rd1 {[%emt 0:10:48]} Nxb3 {[%emt 0:02:04]} 45. axb3 {[%emt 0:00:09]} Rxb2 {[%emt 0:00:05]} 46. Ra1 {[%emt 0:00:19]} Ne6 {[%emt 0:01:37]} 47. Rg2 $2 {[%emt 0:00:46]} (47. Rg3) 47... e4+ $19 {[%emt 0:00:45]} 48. Kg3 {[%emt 0:00:07]} Rxb3 {[%emt 0:00:05]} 49. Rxa6 {[%emt 0:00:14]} Rxc3+ {[%emt 0:00:09]} 50. Kg4 {[%emt 0:00:06]} e3 {[%emt 0:03:07]} 51. Kf5 {[%emt 0:00:26]} d4 {[%emt 0:03:57]} 52. Ra7+ {[%emt 0:01:00]} Kd6 {[%emt 0:00:30]} 53. Ke4 {[%emt 0:03:53]} f5+ {[%emt 0:01:14]} 54. Kf3 {[%emt 0:01:09]} e2+ {[%emt 0:00:31]} 0-1

[Event "RUDAR 2 IM 2022"]
[Site "Pozarevac"]
[Date "2022.04.07"]
[Round "7.5"]
[White "Milanovic, Slavisa"]
[Black "Rajkovic, Aleksandar"]
[Result "1/2-1/2"]
[ECO "B38"]
[WhiteElo "2296"]
[BlackElo "2181"]
[Annotator "TA"]
[PlyCount "78"]
[EventDate "2022.03.27"]
[EventType "tourn"]
[EventCountry "SRB"]
[SourceTitle "playchess.com"]
[Source "ChessBase"]
[SourceQuality "1"]
[TimeControl "40/5400+30:900+30"]

{[%evp 32,78,63,58,60,59,75,65,62,64,99,60,83,70,58,3,76,78,75,69,210,57,46,36,36,34,33,33,33,33,33,33,33,33,33,33,33,33,33,33,33,33,60,33,64,63,66,66,66]} 1. c4 {[%emt 0:00:03]} d6 {[%emt 0:00:56]} 2. d4 {[%emt 0:01:56]} Nf6 {[%emt 0:00:33]} 3. Nc3 {[%emt 0:00:35]} g6 {[%emt 0:01:49]} 4. e4 {[%emt 0:00:35]} Bg7 {[%emt 0:00:11]} 5. h3 {[%emt 0:00:07]} c5 {[%emt 0:00:25]} 6. Nf3 {[%emt 0:02:28]} cxd4 {[%emt 0:00:31]} 7. Nxd4 {[%emt 0:00:06]} O-O {[%emt 0:00:06]} 8. Be3 {[%emt 0:00:33]} Nc6 {[%emt 0:02:24]} 9. Be2 {[%emt 0:00:17]} Bd7 {[%emt 0:03:46]} 10. O-O {[%emt 0:02:25]} Nxd4 {[%emt 0:01:08]} 11. Bxd4 {[%emt 0:00:08]} Bc6 {[%emt 0:00:03]} 12. Qc2 {[%emt 0:00:12]} Nd7 {[%emt 0:00:37]} 13. Bxg7 {[%emt 0:00:59]} Kxg7 {[%emt 0:00:05]} 14. b4 {[%emt 0:00:10]} b6 {[%emt 0:00:30]} 15. Rac1 {[%emt 0:05:22]} a5 {[%emt 0:03:02]} 16. a3 {[%emt 1:22:34]} axb4 {[%emt 0:02:46]} 17. axb4 {[%emt 0:00:00]} Ra7 {[%emt 0:00:08]} 18. f4 {[%emt 0:00:00]} Qa8 {[%emt 0:07:54]} 19. Qd3 {[%emt 0:00:00]} Kg8 {[%emt 0:04:46]} 20. Qd4 {[%emt 0:00:00]} Qb8 {[%emt 0:02:57]} 21. Rc2 {[%emt 0:00:00]} Ra3 {[%emt 0:08:03]} 22. Bg4 {[%emt 0:00:00]} Nf6 {[%emt 0:02:03]} 23. b5 {[%emt 0:00:00]} (23. Bf3 $14) 23... e5 {[%emt 0:01:10]} (23... Ba8 $1 $11) 24. fxe5 $16 {[%emt 0:00:00]} dxe5 {[%emt 0:00:29]} 25. Qd1 {[%emt 0:00:00]} Nxe4 {[%emt 0:04:34] [#]} ({Better is} 25... Bxe4 $14 26. Rxf6 Bxc2 27. Qxc2 e4) 26. bxc6 $2 {[%emt 0:00:00]} (26. Nb1 $1 $18 {[%cal Rb1a3]}) 26... Nxc3 $14 {[%emt 0:01:12]} (26... Rxc3 $2 27. Rxc3 Nxc3 28. Qd7 $18) 27. Qc1 {[%emt 0:00:00]} Qd6 {[%emt 0:00:22]} 28. c7 {[%emt 0:00:00]} f5 {[%emt 0:00:15]} 29. Bxf5 {[%emt 0:00:00]} gxf5 {[%emt 0:01:56]} 30. Qg5+ {[%emt 0:00:00]} Kh8 {[%emt 0:00:23]} 31. Rxf5 {[%emt 0:00:00]} Ra1+ {[%emt 0:00:19]} (31... Qc5+ $2 32. Kh2 Raa8 33. Rxf8+ Qxf8 34. Rxc3 $18) 32. Kh2 {[%emt 0:00:00]} e4+ {[%emt 0:01:50]} 33. Qf4 {[%emt 0:00:00]} Qxf4+ {[%emt 0:01:33]} 34. Rxf4 {[%emt 0:00:00]} Rc8 {[%emt 0:00:18]} 35. Rxc3 {[%emt 0:00:00]} Rxc7 {[%emt 0:00:35]} 36. Rxe4 {[%emt 0:00:00]} Ra8 {[%emt 0:00:07]} 37. Rg3 {[%emt 0:00:43]} Rg8 {[%emt 0:00:56]} 38. Rb3 {[%emt 0:03:58]} Rgc8 {[%emt 0:00:48]} 39. Rb4 {[%emt 0:00:07]} Rc5 {[%emt 0:02:36]} 1/2-1/2